Workbook

Sheet Bestillingsskjema SSC sept 2013
B1: Navn
B2: Adresse
B3: Mail
B4: Tlf
D6: Produkter | I6: Priser | L6: Bestilling | O6: Beløp
D7: Produktnavn | E7: Style code | F7: Størrelser* | G7: Bilde | I7: Pris veil | J7: Pris 30% rabatt (inkl SSC logo på klær/sekk/bag) | L7: Antall | M7: Størrelse
B8: Klubbdrakt | C8: Mann/kvinne/barn | D8: Hettegenser Empyrean voksen (u/glidelås) | E8: 62758 | F8: XS-XXL | G8: Link | I8: 699 | J8: =I8*0.7+25 -> 514.3 | O8: =J8*L8 -> 0
D10: Hettegenser Empyrean barn (u/glidelås) | E10: 63364 | F10: 6/7-14/15 år | G10: Link | I10: 579 | J10: =I10*0.7+25 -> 430.3 | O10: =J10*L10 -> 0
D12: Hettegenser Pressure - kun voksen (m/glidelås) | E12: 68276 | F12: XS-XXL | G12: Link | I12: 779 | J12: =I12*0.7+25 -> 570.3 | O12: =J12*L12 -> 0
D14: Hettegenser Parkour - dame (m/glidelås) - hvit | E14: 68277 | F14: XXS-L | G14: Link | I14: 779 | J14: =I14*0.7+25 -> 570.3 | O14: =J14*L14 -> 0
D16: Bukse Filler ("joggebukse") | E16: 64681 | F16: XS-XXL | I16: 549 | J16: =I16*0.7+25 -> 409.3 | O16: =J16*L16 -> 0
D18: Shorts Gauge voksen | E18: 44749 | F18: XS-3XL | G18: Link | I18: 449 | J18: =I18*0.7+25 -> 339.3 | O18: =J18*L18 -> 0
D20: Shorts Gauge barn | E20: 44796 | F20: 6/7-14/15 år | G20: Link | I20: 349 | J20: =I20*0.7+25 -> 269.3 | O20: =J20*L20 -> 0
D22: T-skjorte Conkers voksen | E22: 37879 | F22: XS-3XL | G22: Link | I22: 249 | J22: =I22*0.7+25 -> 199.3 | O22: =J22*L22 -> 0
D24: T-skjorte Conkers barn | E24: 31693 | F24: 6/7-14/15 år | G24: Link | I24: 199 | J24: =I24*0.7+25 -> 164.3 | O24: =J24*L24 -> 0
B26: Treningsbadetøy | C26: Jente/kvinne | D26: Malteks | E26: 28838 | F26: 36-48 | G26: LInk | I26: 399 | J26: =I26*0.7 -> 279.3 | O26: =J26*L26 -> 0
D28: Malteks youth | E28: 23701 | F28: 6/7-14/15 år | G28: Link | I28: 299 | J28: =I28*0.7 -> 209.3 | O28: =J28*L28 -> 0
D30: Badedrakt Makinas high | E30: 28683 | F30: 36-48 | G30: Link | I30: 419 | J30: =I30*0.7 -> 293.3 | O30: =J30*L30 -> 0
D32: Badedrakt Makinas youth | E32: 23484 | F32: 6/7-14/15 år | G32: Link | I32: 349 | J32: =I32*0.7 -> 244.3 | O32: =J32*L32 -> 0
C34: Gutt/mann | D34: Badebukse Bynars | E34: 27622 | F34: 75-110 | G34: Link | I34: 379 | J34: =I34*0.7 -> 265.3 | O34: =J34*L34 -> 0
D36: Badebukse Bynars youth | E36: 21099 | F36: 6/7-14/15 år | G36: Link | I36: 249 | J36: =I36*0.7 -> 174.3 | O36: =J36*L36 -> 0
D38: Badebukse Saredos | E38: 27830 | F38: 75-110 | G38: Link | I38: 249 | J38: =I38*0.7 -> 174.3 | O38: =J38*L38 -> 0
D40: Badebukse Saredos youth | E40: 21125 | F40: 6/7-14/15 år | G40: Link | I40: 229 | J40: =I40*0.7 -> 160.3 | O40: =J40*L40 -> 0
D42: Arena badebukse Board | E42: 27878 | F42: 75-110 | G42: Link | I42: 449 | J42: =I42*0.7 -> 314.3 | O42: =J42*L42 -> 0
D44: Badebukse Board youth | E44: 21127 | F44: 6/7-14/15 år | G44: Link | I44: 329 | J44: =I44*0.7 -> 230.3 | O44: =J44*L44 -> 0
B46: Konkurransedrakter | C46: Kvinne | D46: POWERSKIN ST FULL BODY SHORT LEG OPEN | E46: 25268 | F46: 30-40 | G46: Link | I46: 1549 | J46: =I46*0.7 -> 1084.3 | O46: =J46*L46 -> 0
D48: POWERSKIN ST CLASSIC SUIT | E48: 28546 | F48: 30-40 | G48: Link | I48: 1099 | J48: =I48*0.7 -> 769.3 | O48: =J48*L48 -> 0
D50: POWERSKIN XP FULL BODY SHORT LEG OPEN | E50: 25263 | F50: 30-40 | G50: Link | I50: 2449 | J50: =I50*0.7 -> 1714.3 | O50: =J50*L50 -> 0
D52: POWERSKIN XP CLASSIC SUIT | E52: 25264 | F52: 30-40 | G52: Link | I52: 1319 | J52: =I52*0.7 -> 923.3 | O52: =J52*L52 -> 0
D54: Powerskin R-EVO + FULL BODY SHORT LEG CLOSED SUIT | E54: 25113 | F54: 30-40 | G54: Link | I54: 3099 | J54: =I54*0.7 -> 2169.3 | O54: =J54*L54 -> 0
D56: Powerskin R-EVO + FULL BODY SHORT LEG OPEN | E56: 24112 | F56: 30-40 | G56: Link | I56: 3099 | J56: =I56*0.7 -> 2169.3 | O56: =J56*L56 -> 0
D58: POWERSKIN CARBON-PRO MK2 | E58: 3799 | F58: 30-40 | G58: Link | I58: 3799 | J58: =I58*0.7 -> 2659.3 | O58: =J58*L58 -> 0
C60: Mann | D60: Powerskin ST Jammer | E60: 27157 | F60: 60-85 | G60: Link | I60: 779 | J60: =I60*0.7 -> 545.3 | O60: =J60*L60 -> 0
D62: Powerskin XP Jammer | E62: 27105 | F62: 60-85 | G62: Link | I62: 1319 | J62: =I62*0.7 -> 923.3 | O62: =J62*L62 -> 0
D64: Powerskin R-EVO + Jammer | E64: 27981 | F64: 60-85 | G64: Link | I64: 1979 | J64: =I64*0.7 -> 1385.3 | O64: =J64*L64 -> 0
D66: POWERSKIN CARBON-PRO MK2 JAMMER | E66: 2599 | F66: 60-85 | G66: Link | I66: 2599 | J66: =I66*0.7 -> 1819.3 | O66: =J66*L66 -> 0
B68: Annet SSC utstyr | C68: Unisex | D68: Navigator ryggsekk 40L | E68: 93557 | G68: Link | I68: 699 | J68: =I68*0.7+25 -> 514.3 | O68: =J68*L68 -> 0
D69: Extractor T-skjorte lang arm hvit | E69: 62757 | F69: XS-XXL | G69: Link | I69: 499 | J69: =I69*0.7+25 -> 374.3 | O69: =J69*L69 -> 0
D71: Mesh bag | E71: 93417 | G71: Link | I71: 179 | J71: =I71*0.7+25 -> 150.3 | O71: =J71*L71 -> 0
B73: SUM | O73: =SUM(O8:O71) -> 0
D76: *Størrelser konkurransedrakter:
D78: Menn: | J78: Kvinner:
D86: *Størrelser treningsbadetøy:
D88: Menn: | J88: Kvinner:
